bitfinex-derivatives/quotes_SOLF0:USTF0_20260215
["timestamp","ask_amount","ask_price","bid_price","bid_amount"]
[1771196922063,96.74605484,85.238,85.14,7.53527437]
[1771196922266,134.44,85.237,85.14,7.53527437]
[1771196922468,10.5659,85.235,85.128,10.5791]
[1771196922672,7.53527437,85.24,85.15,7.53527437]
[1771196922870,93.02,85.239,85.15,7.53527437]
[1771196923170,131.72,85.247,85.153,10.576]
[1771196923373,3.72605484,85.256,85.15,7.53527437]
[1771196923571,14.28935484,85.256,85.154,3.98341328]
[1771196923772,93.02,85.255,85.154,3.98341328]
[1771196924074,96.71322291,85.255,85.154,3.98341328]
[1771196924264,3.69322291,85.254,85.154,3.98341328]
[1771196924465,3.69322291,85.239,85.154,3.98341328]
[1771196924670,3.69322291,85.219,85.154,3.98341328]
[1771196925174,10.5683,85.216,85.154,3.98341328]
[1771196926275,14.4037775,85.214,85.121,3.83842481]
[1771196927167,10.5689,85.211,85.121,3.83842481]
[1771196927374,3.8352775,85.21,85.121,3.83842481]
[1771196927873,7.53527437,85.22,85.122,3.83842481]
[1771196928069,3.8352775,85.219,85.122,3.83842481]
[1771196928468,3.8352775,85.218,85.122,3.83842481]
[1771196929673,7.53527437,85.22,85.141,3.83842481]
[1771196929873,3.8352775,85.238,85.141,3.83842481]
[1771196930072,96.8552775,85.238,85.141,3.83842481]
[1771196930373,3.8352775,85.232,85.141,3.83842481]
[1771196932868,10.5664,85.231,85.144,3.83842481]
[1771196933171,3.8352775,85.23,85.144,3.83842481]
[1771196933476,7.53527437,85.22,85.144,3.83842481]
[1771196934065,3.8352775,85.219,85.144,3.83842481]
[1771196935877,3.8352775,85.239,85.147,3.83842481]
[1771196936074,3.8352775,85.279,85.181,3.83842481]
[1771196936374,10.5609,85.276,85.187,3.83842481]
[1771196936768,3.8352775,85.279,85.2,3.83842481]
[1771196936970,3.8352775,85.279,85.201,3.83842481]
[1771196937873,3.8352775,85.277,85.201,3.83842481]
[1771196938777,10.5609,85.276,85.201,3.83842481]
[1771196939276,3.8352775,85.271,85.201,3.83842481]
[1771196940172,10.5617,85.269,85.201,3.83842481]
[1771196940577,3.8352775,85.271,85.201,3.83842481]
[1771196940978,3.8352775,85.309,85.201,3.83842481]
[1771196941173,3.8352775,85.307,85.227,3.83842481]
[1771196942379,3.8352775,85.307,85.233,3.83842481]
[1771196943677,3.8352775,85.307,85.237,3.83842481]
[1771196943877,10.5548,85.325,85.24,7.53527437]
[1771196944077,3.8352775,85.329,85.241,3.83842481]
[1771196944582,10.5544,85.328,85.256,3.83842481]
[1771196945579,11.37055187,85.35,85.261,3.83842481]
[1771196945777,3.8352775,85.349,85.261,3.83842481]
[1771196946383,3.8352775,85.349,85.263,3.83842481]
[1771196947186,10.5519,85.348,85.275,3.83842481]
[1771196947882,93.06,85.36,85.278,3.83842481]
[1771196947883,103.6105,85.36,85.278,3.83842481]
[1771196948083,3.8352775,85.399,85.301,3.83842481]
[1771196948286,28.61637437,85.44,85.301,3.83842481]
[1771196948287,10.5488,85.374,85.301,3.83842481]
[1771196949888,10.5488,85.374,85.303,3.83842481]
[1771196950286,3.8352775,85.38,85.307,3.83842481]
[1771196951594,3.8352775,85.38,85.309,3.83842481]
[1771196951790,3.8352775,85.378,85.309,3.83842481]
[1771196952185,3.8352775,85.378,85.29,3.83842481]
[1771196952389,3.8352775,85.359,85.29,3.83842481]
[1771196953294,3.8352775,85.359,85.292,3.83842481]
[1771196954093,3.8352775,85.359,85.26,7.53527437]
[1771196954094,3.77124709,85.344,85.281,3.81070953]
[1771196954593,7.53527437,85.36,85.281,3.81070953]
[1771196954594,3.77124709,85.359,85.281,3.81070953]
[1771196955197,10.5507,85.358,85.286,3.81070953]
[1771196955393,3.77124709,85.359,85.286,3.81070953]
[1771196955597,3.77124709,85.339,85.261,3.81070953]
[1771196955894,140.1,85.358,85.24,3.81070953]
[1771196955895,3.77124709,85.319,85.24,3.81070953]
[1771196956096,3.77124709,85.319,85.22,7.53527437]
[1771196956097,3.77124709,85.319,85.221,3.81070953]
[1771196956392,3.77124709,85.299,85.221,3.81070953]
[1771196957092,3.77124709,85.278,85.202,253.03198358]
[1771196957299,3.77124709,85.278,85.202,3.81070953]
[1771196958294,10.5645,85.247,85.181,3.81070953]
[1771196958500,3.77124709,85.239,85.16,3.81070953]
[1771196959692,10.5655,85.238,85.161,10.575]
[1771196959900,10.5655,85.238,85.162,3.81070953]
[1771196960101,14.33674709,85.238,85.162,3.81070953]
[1771196960294,3.77124709,85.263,85.168,3.81070953]
[1771196961399,7.53527437,85.28,85.14,7.53527437]
[1771196961400,7.53527437,85.28,85.184,3.81070953]
[1771196961899,7.53527437,85.28,85.18,7.53527437]
[1771196961900,10.5622,85.265,85.187,3.81070953]
[1771196962297,10.5622,85.265,85.131,299.0]
[1771196962298,3.77124709,85.345,85.259,3.81070953]
[1771196962501,164.0372,85.402,85.2,7.53527437]
[1771196962502,3.77124709,85.329,85.231,3.81070953]
[1771196962704,3.77124709,85.329,85.214,93.08]
[1771196962705,3.77124709,85.329,85.251,3.81070953]
[1771196962902,3.77124709,85.327,85.251,3.81070953]
[1771196963403,3.77124709,85.327,85.211,3.81070953]
[1771196963604,3.77124709,85.309,85.211,3.81070953]
[1771196963798,3.77124709,85.306,85.229,3.81070953]
[1771196964404,10.5574,85.303,85.232,10.5662]
[1771196964605,3.77124709,85.302,85.229,3.81070953]
[1771196965003,10.5581,85.298,85.229,3.81070953]
[1771196965204,3.77124709,85.302,85.231,3.81070953]
[1771196965708,3.77124709,85.302,85.23,7.53527437]
[1771196965709,7.53527437,85.32,85.243,3.81070953]
[1771196966007,3.77124709,85.319,85.243,3.81070953]
[1771196966797,3.77124709,85.318,85.243,3.81070953]
[1771196967205,3.77124709,85.318,85.257,10.5631]
[1771196967610,3.77124709,85.318,85.243,3.81070953]
[1771196967810,3.77124709,85.318,85.258,10.563]
[1771196969911,3.77124709,85.318,85.246,10.5644]
[1771196970111,3.77124709,85.318,85.224,3.81070953]
[1771196970313,3.77124709,85.318,85.231,3.81070953]
[1771196970511,93.1,85.342,85.231,3.81070953]
[1771196970512,3.77124709,85.337,85.275,10.5609]
[1771196970907,3.77124709,85.337,85.275,3.81070953]
[1771196971105,3.77124709,85.337,85.287,10.5594]
[1771196971405,3.77124709,85.337,85.275,3.81070953]
[1771196972401,3.77124709,85.337,85.286,10.5595]
[1771196974016,3.77124709,85.351,85.291,3.81070953]
[1771196974414,7.53835258,85.38,85.291,3.81070953]
[1771196974415,3.77124709,85.379,85.291,3.81070953]
[1771196974819,3.77124709,85.367,85.291,3.81070953]
[1771196975619,3.77124709,85.359,85.261,3.81070953]
[1771196976114,3.77124709,85.358,85.279,10.5603]
[1771196976323,3.77124709,85.356,85.279,10.5603]
[1771196976820,10.5516,85.35,85.29,10.559]
[1771196977021,3.77124709,85.349,85.29,10.559]
[1771196977926,3.77124709,85.349,85.3,10.5578]
[1771196979013,143.08,85.357,85.309,10.5566]
[1771196979215,3.77124709,85.367,85.309,10.5566]
[1771196982424,3.77124709,85.385,85.301,3.81070953]
[1771196982619,3.77124709,85.403,85.301,3.81070953]
[1771196983725,3.83961317,85.393,85.333,10.5536]
[1771196984120,3.83961317,85.393,85.32,3.64078693]
[1771196984320,3.83961317,85.39,85.332,10.5537]
[1771196985117,3.74988526,85.386,85.322,10.555]
[1771196985318,7.53835258,85.39,85.171,671.4414]
[1771196985319,3.74988526,85.369,85.271,3.98643141]
[1771196985724,3.74988526,85.349,85.271,3.98643141]
[1771196986731,3.74988526,85.348,85.297,10.5582]
[1771196988227,3.74988526,85.348,85.271,3.98643141]
[1771196988619,3.74988526,85.348,85.294,10.5585]
[1771196990124,3.74988526,85.348,85.302,10.5575]
[1771196990832,3.74988526,85.339,85.292,10.5587]
[1771196991026,3.74988526,85.339,85.271,3.98643141]
[1771196991935,7.53835258,85.36,85.288,3.98643141]
[1771196992733,7.53835258,85.36,85.318,10.5555]
[1771196992929,7.53835258,85.36,85.288,3.98643141]
[1771196993234,10.5507,85.358,85.307,10.5569]
[1771196994030,3.27795089,85.357,85.307,10.5569]
[1771196994432,3.27795089,85.357,85.317,10.5557]
[1771196994634,3.27795089,85.357,85.288,3.98643141]
[1771196995730,3.27795089,85.357,85.308,10.5567]
[1771196996129,3.27795089,85.357,85.288,3.98643141]
[1771196996434,9.60265946,85.391,85.27,7.53835258]
[1771196996435,7.53835258,85.4,85.311,4.00078139]
[1771196996837,10.5456,85.399,85.344,10.5523]
[1771196997037,7.53835258,85.4,85.344,10.5523]
[1771196997440,7.53835258,85.4,85.282,164.2671]
[1771196997441,7.53835258,85.38,85.306,3.98643141]
[1771196998239,0.04669874,85.379,85.306,3.98643141]
[1771196998739,0.04669874,85.379,85.334,10.5535]
[1771196999636,0.04669874,85.379,85.306,3.98643141]
[1771196999637,0.04669874,85.379,85.326,10.5546]
[1771197000038,0.04669874,85.379,85.306,3.98643141]
[1771197000233,0.04669874,85.379,85.324,4.03263697]
[1771197000438,7.53835258,85.4,85.324,4.03263697]
[1771197000737,18.08395258,85.4,85.351,10.5515]
[1771197001134,7.53835258,85.4,85.324,4.03263697]
[1771197001332,10.5475,85.384,85.333,10.5536]
[1771197001536,7.53835258,85.4,85.324,4.03263697]
[1771197001734,115.52,85.411,85.324,4.03263697]
[1771197001938,7.53835258,85.42,85.324,4.03263697]
[1771197002437,7.53835258,85.42,85.308,93.14]
[1771197002438,7.53835258,85.42,85.331,4.02777782]
[1771197002642,10.5431,85.419,85.35,4.02777782]
[1771197003637,10.5431,85.419,85.365,10.5497]
[1771197003843,10.5418,85.43,85.35,4.02777782]
[1771197004434,10.5429,85.421,85.366,10.5495]
[1771197004638,10.5429,85.421,85.35,4.02777782]
[1771197004943,10.5418,85.43,85.374,10.5486]
[1771197005139,7.53835258,85.44,85.351,4.009122]
[1771197006834,7.53835258,85.44,85.332,164.1715]
[1771197006835,7.53835258,85.44,85.361,4.01684653]
[1771197007438,10.5406,85.439,85.389,10.5467]
[1771197008047,10.5395,85.448,85.389,10.5467]
[1771197008240,7.53835258,85.44,85.379,10.5479]
[1771197008742,10.5409,85.437,85.379,10.5479]
[1771197009147,7.53835258,85.44,85.367,10.5495]
[1771197009348,217.31233176,85.439,85.367,10.5495]
[1771197009538,10.5419,85.429,85.367,10.5495]
[1771197009740,10.5419,85.429,85.325,93.16]
[1771197009948,9.63233176,85.438,85.368,4.06111139]
[1771197010750,0.07742468,85.437,85.387,10.547]
[1771197012448,0.08051355,85.435,85.378,10.5481]
[1771197013049,0.12520843,85.425,85.369,10.5492]
[1771197013843,0.12520843,85.425,85.377,10.5482]
[1771197014943,0.17656884,85.437,85.366,3.9592199]
[1771197015346,10.5432,85.419,85.366,3.9592199]
[1771197015650,207.68,85.439,85.331,3.93859583]
[1771197015651,0.17656884,85.418,85.331,3.93859583]
[1771197015946,9.63147045,85.437,85.258,28.64625384]
[1771197015947,0.17792533,85.435,85.351,3.93870469]
[1771197016140,0.17792533,85.432,85.369,3.93870469]
[1771197017342,0.17792533,85.432,85.38,10.5479]
[1771197017846,0.17792533,85.432,85.38,14.52901298]
[1771197018246,10.5418,85.43,85.38,14.52901298]
[1771197018546,0.17792533,85.432,85.38,14.52901298]
[1771197020654,207.68,85.439,85.389,3.95432947]
[1771197020851,0.14704752,85.448,85.389,3.95432947]
[1771197021155,0.14704752,85.448,85.399,10.5455]
[1771197021346,0.15411554,85.482,85.4,3.95432947]
[1771197021547,0.15411554,85.482,85.411,3.95432947]
[1771197021748,0.15411554,85.482,85.43,3.95443629]
[1771197021749,10.68951554,85.482,85.43,3.95443629]
[1771197021950,0.15411554,85.482,85.43,3.95443629]
[1771197022545,93.16,85.49,85.44,10.5404]
[1771197022744,0.10507821,85.489,85.43,3.95443629]
[1771197022947,0.10507821,85.488,85.43,3.95443629]
[1771197023856,7.53835258,85.52,85.43,3.95443629]
[1771197023857,0.10630413,85.505,85.441,3.97966148]
[1771197024954,0.10630413,85.505,85.411,3.91747181]
[1771197025152,0.23336051,85.503,85.411,3.91747181]
[1771197025457,0.23336051,85.502,85.411,3.91747181]
[1771197025650,0.23336051,85.493,85.43,3.91747181]
[1771197026157,108.5,85.504,85.447,14.4571642]
[1771197026360,0.23452732,85.51,85.448,3.9175642]
[1771197026653,10.5301,85.525,85.465,14.4549642]
[1771197026952,0.36024422,85.524,85.466,3.87376796]
[1771197027353,0.36024422,85.524,85.465,10.5374]
[1771197027548,0.36024422,85.519,85.431,3.87376796]
[1771197027751,0.36008492,85.517,85.431,3.87376796]
[1771197027955,0.36008492,85.516,85.431,3.87376796]
[1771197028654,0.36138529,85.5,85.443,10.5401]
[1771197031251,0.57232062,85.499,85.443,10.5401]
[1771197031457,117.48,85.533,85.444,3.87376796]
[1771197031761,117.48,85.533,85.386,93.18]
[1771197031762,0.57220145,85.524,85.461,3.87376796]
[1771197031952,0.57220145,85.524,85.404,21.0897]
[1771197031953,0.57220145,85.524,85.444,3.87376796]
[1771197032156,0.5734263,85.509,85.444,3.87376796]
[1771197034460,7.51201316,85.52,85.446,3.87376796]
[1771197034759,10.531,85.518,85.459,3.87376796]
[1771197035753,10.5295,85.53,85.463,3.87376796]
[1771197036254,0.58798299,85.539,85.463,3.87376796]
[1771197036452,10.5318,85.511,85.463,3.87376796]
[1771197037261,0.55740197,85.519,85.453,3.87376796]
[1771197038659,0.55845128,85.538,85.453,3.87376796]
[1771197039855,10.5312,85.516,85.463,3.87376796]
[1771197040666,10.5312,85.516,85.465,3.87376796]
[1771197042171,10.5312,85.516,85.44,7.51201316]
[1771197042172,10.5312,85.516,85.466,14.41096796]
[1771197045269,10.5322,85.508,85.455,3.96012512]
[1771197045979,0.50314389,85.515,85.462,3.96012512]
[1771197046480,10.5311,85.517,85.462,3.96012512]
[1771197046882,206.16,85.524,85.473,3.96012512]
[1771197047377,35.13,85.573,85.425,21.0846]
[1771197047378,10.5284,85.539,85.485,3.96012512]
[1771197047576,0.5262736,85.529,85.426,3.96012512]
[1771197047773,0.5262736,85.527,85.426,3.96012512]
[1771197047977,10.5318,85.512,85.466,10.5373]
[1771197048176,10.5318,85.512,85.467,3.96012512]
[1771197048472,10.5307,85.52,85.468,10.537]
[1771197048678,10.28501489,85.545,85.469,3.96012512]
[1771197048882,0.52718658,85.545,85.469,3.96012512]
[1771197049982,10.5281,85.541,85.483,3.96012512]
[1771197050981,10.5281,85.541,85.486,3.96012512]
[1771197051485,10.5267,85.553,85.486,3.96012512]
[1771197052376,10.5267,85.553,85.497,3.96012512]
[1771197052578,10.5278,85.544,85.497,3.96012512]
[1771197052777,0.53762119,85.544,85.461,3.96012512]
[1771197052977,0.53762119,85.544,85.471,3.96012512]
[1771197053586,10.5297,85.528,85.476,3.96012512]
[1771197053781,0.53762119,85.544,85.476,3.96012512]
[1771197054387,10.5298,85.528,85.477,3.96012512]
[1771197054984,10.5284,85.539,85.48,3.96012512]
[1771197055186,0.53762119,85.544,85.48,3.96012512]
[1771197056791,10.5283,85.54,85.482,3.96012512]
[1771197058382,10.5283,85.54,85.46,7.51201316]
[1771197058383,10.5283,85.54,85.484,3.96012512]
[1771197058890,10.5283,85.54,85.487,3.96012512]
[1771197059887,10.5298,85.527,85.49,3.96012512]
[1771197060581,9.80350391,85.554,85.49,3.96012512]
[1771197060784,0.736029,85.564,85.49,3.96012512]
[1771197060981,10.5289,85.535,85.49,3.96012512]
[1771197061590,10.5277,85.544,85.49,3.96012512]
[1771197061787,9.80350391,85.568,85.493,3.96012512]
[1771197062092,0.75224858,85.563,85.493,3.96012512]
[1771197062592,9.80350391,85.562,85.493,3.96012512]
[1771197062793,0.7721609,85.579,85.505,3.96012512]
[1771197063093,9.80350391,85.578,85.505,3.96012512]
[1771197063286,0.77298751,85.576,85.505,3.96012512]
[1771197063490,10.5245,85.57,85.516,3.96012512]
[1771197063786,8.33577491,85.593,85.516,3.96012512]
[1771197063787,9.80350391,85.589,85.516,3.96012512]
[1771197063986,9.80350391,85.588,85.521,3.96012512]
[1771197064183,9.80350391,85.593,85.521,3.96012512]
[1771197064493,10.5226,85.586,85.526,3.96012512]
[1771197064986,10.5224,85.588,85.531,3.96012512]
[1771197065385,9.80350391,85.587,85.531,3.96012512]
[1771197065594,9.80350391,85.587,85.535,3.96012512]
[1771197065891,9.80350391,85.597,85.541,3.96012512]
[1771197066091,9.80350391,85.596,85.541,3.96012512]
[1771197066289,9.80350391,85.608,85.541,3.96012512]
[1771197066491,9.80350391,85.607,85.547,3.96012512]
[1771197066687,9.80350391,85.624,85.547,3.96012512]
[1771197066894,9.80350391,85.623,85.547,3.96012512]
[1771197067088,9.80350391,85.622,85.547,3.96012512]
[1771197067291,9.80350391,85.621,85.547,3.96012512]
[1771197067487,0.78590141,85.605,85.547,3.96012512]
[1771197068190,0.78662398,85.596,85.547,3.96012512]
[1771197068389,0.78662398,85.625,85.547,3.96012512]
[1771197068591,0.78662398,85.623,85.547,3.96012512]
[1771197068791,0.80174546,85.621,85.553,3.96012512]
[1771197068988,206.08,85.626,85.553,3.96012512]
[1771197068989,0.80251535,85.619,85.553,3.96012512]
[1771197069190,0.80251535,85.617,85.553,3.96012512]
[1771197069388,0.80251535,85.615,85.553,3.96012512]
[1771197069697,10.5203,85.604,85.553,3.96012512]
[1771197069898,0.80251535,85.615,85.553,3.96012512]
[1771197070697,0.80251535,85.615,85.563,3.96012512]
[1771197071697,9.80350391,85.629,85.566,3.96012512]
[1771197072001,0.95323549,85.589,85.482,3.96012512]
[1771197072200,163.6559,85.601,85.482,3.96012512]
[1771197072201,0.95409161,85.559,85.482,3.96012512]
[1771197072399,0.95409161,85.557,85.482,3.96012512]
[1771197072596,0.95409161,85.579,85.491,3.96012512]
[1771197072792,0.95409161,85.579,85.526,3.96012512]
[1771197072993,10.5224,85.587,85.526,3.96012512]
[1771197074098,7.51201316,85.57,85.505,3.67846179]
[1771197074302,8.32517592,85.57,85.505,3.67846179]
[1771197074909,10.5252,85.565,85.508,3.67846179]
[1771197075102,1.00216972,85.569,85.508,3.67846179]
[1771197075300,7.51201316,85.53,85.472,3.67846179]
[1771197075701,7.51201316,85.55,85.472,3.67846179]
[1771197076005,8.51414752,85.55,85.472,3.67846179]
[1771197076205,1.0029182,85.549,85.476,3.67846179]
[1771197076905,10.5285,85.538,85.477,3.67846179]
[1771197077295,10.526,85.558,85.499,3.67846179]
[1771197077804,10.523,85.583,85.52,3.67846179]
[1771197078009,1.01178043,85.585,85.52,3.67846179]
[1771197079505,10.5243,85.572,85.52,3.67846179]
[1771197080405,10.5256,85.562,85.52,3.67846179]
[1771197080609,1.01178043,85.585,85.52,3.67846179]
[1771197081106,1.05737616,85.529,85.461,3.67846179]
[1771197081306,7.51201316,85.53,85.442,3.67846179]
[1771197081307,1.05737616,85.509,85.442,3.67846179]
[1771197082109,10.5322,85.508,85.445,3.67846179]
[1771197082901,10.5309,85.518,85.448,3.67846179]
[1771197083112,1.05812822,85.527,85.448,3.67846179]
[1771197083601,7.51201316,85.53,85.43,7.51201316]
[1771197083602,10.5296,85.529,85.461,3.67846179]
[1771197084514,10.5313,85.515,85.461,3.67846179]
[1771197085307,10.5325,85.505,85.461,3.67846179]
[1771197086708,9.74919016,85.52,85.461,3.67846179]
[1771197086914,10.5313,85.515,85.461,3.67846179]
[1771197087410,1.02172667,85.506,85.44,3.67846179]
[1771197087914,7.51201316,85.52,85.44,3.67846179]
[1771197088108,10.5312,85.516,85.452,3.67846179]
[1771197088908,10.5323,85.507,85.452,3.67846179]
[1771197089209,1.17108594,85.479,85.394,3.67846179]
[1771197089815,1.17106615,85.439,85.345,3.67846179]
[1771197090412,7.51201316,85.42,85.353,3.67846179]
[1771197091211,7.51201316,85.42,85.367,10.5495]
[1771197091403,1.15473902,85.419,85.353,3.67846179]
[1771197091612,1.15473902,85.437,85.353,3.67846179]
[1771197091816,1.15473902,85.437,85.37,14.22746179]
[1771197092715,1.30059471,85.433,85.37,14.22746179]
[1771197094721,10.5416,85.431,85.37,14.22746179]
[1771197095810,7.51201316,85.42,85.37,14.22746179]
[1771197096112,7.52710619,85.42,85.37,14.22746179]
[1771197098510,7.52710619,85.44,85.382,3.67846179]
[1771197099219,7.52710619,85.44,85.386,3.67846179]
[1771197099520,1.33789123,85.448,85.386,3.67846179]
[1771197099717,7.52710619,85.46,85.339,93.2]
[1771197099718,7.52710619,85.46,85.403,3.67846179]
[1771197100619,1.34248872,85.459,85.384,3.67846179]
[1771197101120,7.52710619,85.45,85.384,3.67846179]
[1771197101622,7.52710619,85.45,85.394,14.22456179]
[1771197102009,7.52710619,85.45,85.394,3.67846179]
[1771197102210,7.52710619,85.47,85.404,3.67846179]
[1771197102717,1.38095362,85.467,85.404,3.67846179]
[1771197103111,7.52710619,85.47,85.404,3.67846179]
[1771197103316,93.2,85.487,85.404,3.67846179]
[1771197103519,10.5349,85.486,85.418,3.96042629]
[1771197104213,10.5349,85.486,85.422,3.96042629]
[1771197104418,1.36004985,85.488,85.422,3.96042629]
[1771197104817,7.52710619,85.49,85.4,3.73637012]
[1771197104818,1.33308907,85.469,85.4,3.73637012]
[1771197105823,1.33366147,85.465,85.403,10.545]
[1771197106620,1.33366147,85.465,85.413,10.5438]
[1771197107325,10.5384,85.457,85.404,3.73637012]
[1771197107520,7.52710619,85.45,85.386,3.73637012]
[1771197108123,10.5401,85.444,85.386,3.73637012]
[1771197109224,7.52710619,85.45,85.393,10.5462]
[1771197109431,1.29478015,85.456,85.394,3.73637012]
[1771197109927,1.29478015,85.456,85.37,7.52710619]
[1771197109928,7.52710619,85.46,85.409,3.73637012]
[1771197110725,7.52710619,85.46,85.411,10.544]
[1771197111121,10.5382,85.459,85.409,3.73637012]
[1771197111531,11.83558485,85.459,85.404,6.53]
[1771197112031,7.52710619,85.49,85.404,6.53]
[1771197112032,7.52710619,85.44,85.404,6.53]
[1771197112827,8.8546247,85.44,85.404,6.53]
[1771197113128,8.8546247,85.44,85.381,10.5477]
[1771197113129,11.86870692,85.439,85.381,10.5477]
[1771197113433,1.32800692,85.438,85.381,10.5477]
[1771197113823,1.32800073,85.436,85.381,10.5477]
[1771197114029,1.32800073,85.436,85.372,14.28517012]
[1771197114424,1.32848191,85.419,85.354,3.73637012]
[1771197114624,7.52710619,85.4,85.354,3.73637012]
[1771197115833,7.52710619,85.4,85.356,10.5508]
[1771197117635,1.35441849,85.394,85.337,10.5532]
[1771197117835,1.35441849,85.394,85.332,3.73637012]
[1771197118736,1.35441849,85.394,85.345,10.5521]
[1771197120331,100.34,85.441,85.359,3.73637012]
[1771197120726,10.5421,85.427,85.364,10.5499]
[1771197120931,10.5421,85.427,85.365,4.75615799]
[1771197121837,10.5432,85.419,85.365,4.75615799]
[1771197122638,10.5432,85.419,85.366,10.5496]
[1771197122837,10.5419,85.429,85.365,4.75615799]
[1771197123333,10.543,85.42,85.365,4.75615799]
[1771197124338,10.543,85.42,85.366,10.5495]
[1771197125229,10.543,85.42,85.365,4.75615799]
[1771197126034,10.5441,85.412,85.365,4.75615799]
[1771197126235,10.5441,85.412,85.357,10.5507]
[1771197128335,10.545,85.404,85.347,15.2807075]
[1771197129236,9.63045418,85.403,85.347,15.2807075]
[1771197129438,10.545,85.404,85.347,15.2807075]
[1771197129439,9.63045418,85.402,85.347,15.2807075]
[1771197129641,9.63045418,85.401,85.347,15.2807075]
[1771197129835,9.63045418,85.403,85.347,15.2807075]
[1771197130034,9.63045418,85.402,85.347,15.2807075]
[1771197130235,9.63045418,85.401,85.347,15.2807075]
[1771197130541,9.63045418,85.413,85.355,4.73015126]
[1771197130741,147.16,85.414,85.355,4.73015126]
[1771197131333,147.16,85.414,85.37,15.29762199]
[1771197133331,147.16,85.414,85.371,4.75237629]
[1771197133533,10.5403,85.442,85.371,4.75237629]
[1771197133736,9.67741066,85.441,85.371,4.75237629]
[1771197133936,9.67741066,85.44,85.371,4.75237629]
[1771197134136,9.67741066,85.439,85.371,4.75237629]
[1771197134336,9.67741066,85.438,85.371,4.75237629]
[1771197134537,9.67741066,85.437,85.393,10.5462]
[1771197134734,9.67741066,85.436,85.393,10.5462]
[1771197134935,9.67741066,85.435,85.394,4.75013908]
[1771197135133,10.5379,85.462,85.402,4.75013908]
[1771197135335,9.68505711,85.461,85.402,4.75013908]
[1771197135531,9.68505711,85.46,85.402,4.75013908]
[1771197135735,9.68505711,85.459,85.402,4.75013908]
[1771197135931,9.68505711,85.458,85.402,4.75013908]
[1771197136236,9.68505711,85.457,85.402,4.75013908]
[1771197136442,9.68505711,85.456,85.402,4.75013908]
[1771197136638,9.68505711,85.455,85.402,4.75013908]
[1771197136838,9.68505711,85.454,85.402,4.75013908]
[1771197137038,9.68505711,85.453,85.402,4.75013908]
[1771197137235,9.68505711,85.452,85.402,4.75013908]
[1771197137432,10.5368,85.47,85.413,10.5438]
[1771197137637,9.68505711,85.469,85.413,10.5438]
[1771197137833,9.68505711,85.468,85.402,4.75013908]
[1771197138043,9.68505711,85.467,85.411,10.544]
[1771197138237,9.68505711,85.466,85.412,4.75296062]
[1771197138436,9.68505711,85.465,85.412,4.75296062]
[1771197138632,9.68505711,85.464,85.412,4.75296062]
[1771197138836,9.68505711,85.468,85.425,15.29344693]
[1771197139038,9.68505711,85.476,85.426,4.75114693]
[1771197139239,9.68505711,85.477,85.426,4.75114693]
[1771197139438,311.98157309,85.478,85.426,4.75114693]
[1771197140035,311.98157309,85.478,85.437,10.5408]
[1771197140437,10.5342,85.492,85.437,10.5408]
[1771197140643,211.75721336,85.491,85.437,10.5408]
[1771197140949,211.75721336,85.491,85.39,7.52710619]
[1771197140950,202.08,85.491,85.444,4.74968826]
[1771197141142,7.52710619,85.52,85.444,4.74968826]
[1771197141341,9.67371767,85.519,85.462,15.28738826]
[1771197141537,102.91371767,85.525,85.463,4.74968826]
[1771197141845,9.67371767,85.524,85.463,4.74968826]
[1771197142044,9.67371767,85.523,85.463,4.74968826]
[1771197142243,9.67371767,85.524,85.463,4.74968826]
[1771197142445,9.67371767,85.524,85.463,15.28728826]
[1771197143341,9.67371767,85.524,85.471,10.5366]
[1771197143541,93.24,85.525,85.471,10.5366]
[1771197144146,93.24,85.525,85.471,15.36012857]
[1771197144346,93.24,85.525,85.477,10.5359]
[1771197145053,14.16480928,85.589,85.472,4.82352857]
[1771197145054,7.52710619,85.6,85.496,4.81362409]
[1771197145846,7.52710619,85.58,85.498,4.81364579]
[1771197146745,202.62,85.579,85.498,4.81364579]
[1771197147946,213.1435,85.579,85.511,10.5317]
[1771197149548,213.1435,85.579,85.5,10.533]
[1771197149748,10.5249,85.567,85.5,10.533]
[1771197150452,10.5236,85.578,85.506,10.5323]
[1771197152052,202.62,85.579,85.501,4.77222817]
[1771197152053,10.5251,85.565,85.503,10.5327]
[1771197152349,186.96,85.566,85.504,4.76770686]
[1771197153846,186.96,85.566,85.509,10.532]
[1771197155364,200.26,85.572,85.509,10.532]
[1771197155652,203.96,85.573,85.509,10.532]
[1771197156364,204.18,85.572,85.516,10.5311]
[1771197157149,10.5239,85.575,85.516,10.5311]
[1771197157342,93.24,85.574,85.516,10.5311]
[1771197157751,93.24,85.574,85.51,4.7720884]
[1771197157943,7.50295686,85.57,85.51,4.7720884]